fUSD/lending_fUSD_20241122
["ID","MTS","AMOUNT","RATE_DAILY","PERIOD"]
[343036967,1732302634139,-504.47214588,0.00082889,120]
[343036968,1732302634149,-500.0,0.00082889,120]
[343036969,1732302634159,-501.60257978,0.00082889,120]
[343036970,1732302634169,-280.4852952,0.00082889,120]
[343036971,1732302634180,-1752.03,0.00082889,120]
[343036972,1732302634190,-2357.94,0.00082889,120]
[343036973,1732302634199,-672.05,0.00082889,120]
[343036974,1732302634209,-4284.44,0.00082889,120]
[343036975,1732302634220,-500.0,0.00082889,120]
[343036976,1732302634230,-500.0,0.00082889,120]
[343036977,1732302634241,-500.0,0.00082889,120]
[343036978,1732302634251,-36527.92024981,0.0008289,11]
[343036979,1732302634380,-1265.43493279,0.0008289,11]
[343036980,1732302634392,-347.40099992,0.0008289,11]
[343036981,1732302634403,-4689.14308298,0.0008289,11]
[343036982,1732302634413,-629.68516401,0.00082897,120]
[343036983,1732302634423,-9202.98,0.00082897,120]
[343036984,1732302634432,-500.0,0.00082897,120]
[343036985,1732302634442,-500.0,0.00082897,120]
[343036986,1732302634452,-134.73175147,0.00082899,120]
[343036987,1732302634466,-1257.86824853,0.00082899,120]
[343036988,1732302634476,-1838.7,0.00082899,120]
[343036989,1732302634486,-695.71,0.00082899,120]
[343036990,1732302634495,-500.0,0.00082899,120]
[343036991,1732302634505,-71232.72175243,0.000829,30]
[343036992,1732302634517,-28767.27824757,0.000829,30]
[343036993,1732302634528,-1700.0,0.000829,30]
[343036994,1732302634537,-21414.9496327,0.00082969,11]
[343036995,1732302634547,-21414.9496327,0.00082989,11]
[343036996,1732302634556,-1752.03,0.00082989,120]
[343036997,1732302634692,-672.05,0.00082989,120]
[343036998,1732302634703,-500.0,0.00082989,120]
[343036999,1732302634713,-21414.9496327,0.0008299,11]
[343037000,1732302634723,-16346.2152537,0.0008299,10]
[343037001,1732302634732,-16346.2152537,0.0008299,10]
[343037002,1732302634741,-1368.71,0.00082999,120]
[343037003,1732302634751,-1134.67,0.00082999,120]
[343037004,1732302634761,-730.93,0.00082999,120]
[343037005,1732302634771,-500.0,0.00082999,120]
[343037006,1732302634780,-500.0,0.00082999,120]
[343037007,1732302634790,-500.0,0.00082999,120]
[343037008,1732302634799,-500.0,0.00082999,120]
[343037009,1732302634808,-560.29,0.00082999,120]
[343037010,1732302634817,-9202.98,0.00082999,120]
[343037011,1732302634827,-919.48,0.00082999,120]
[343037012,1732302634836,-1310.86,0.00082999,120]
[343037013,1732302634845,-500.0,0.00082999,120]
[343037014,1732302634855,-500.0,0.00082999,120]
[343037015,1732302634865,-851.43,0.00082999,120]
[343037016,1732302634875,-269.43365374,0.00082999,120]
[343037017,1732302634884,-500.0,0.00082999,120]
[343037018,1732302634893,-1785.04,0.00082999,120]
[343037019,1732302634903,-1062.65,0.00082999,120]
[343037020,1732302634913,-500.0,0.00082999,120]
[343037021,1732302634923,-500.0,0.00082999,120]
[343037022,1732302634932,-867.12,0.00082999,120]
[343037023,1732302634941,-1045.19,0.00082999,120]
[343037024,1732302634950,-500.0,0.00082999,120]
[343037025,1732302634961,-2357.94,0.00082999,120]
[343037026,1732302634970,-4284.44,0.00082999,120]
[343037027,1732302634979,-500.0,0.00082999,120]
[343037028,1732302634989,-500.0,0.00082999,120]
[343037029,1732302634998,-50000.0,0.00083,50]
[343037030,1732302635007,-7000.0,0.00083,120]
[343037031,1732302635017,-10000.0,0.00083,120]
[343037032,1732302635026,-138236.44085803,0.00083,120]
[343037033,1732302635035,-204.0,0.0008306,30]
[343037034,1732302635043,-222.75800992,0.0008314,68]
[343037035,1732302635052,-169.77282163,0.00083161,120]
[343037036,1732302635061,-166.82955006,0.00083161,68]
[343037037,1732302635071,-23881.4584738,0.00083204,10]
[343037038,1732302635080,-16972.88197975,0.0008322,11]
[343037039,1732302635092,-3932.30007648,0.0008322,11]
[343037040,1732302638239,-1488.0,0.000729,120]
[343037042,1732302638249,-1916.16500162,0.00082504,15]
[343037043,1732302638259,-509.76757647,0.0008322,11]
[343037045,1732302638269,-1265.37745066,0.0008322,10]
[343037050,1732302638319,-1764.8379986,0.0008322,10]
[343037052,1732302638331,-4674.42805241,0.0008322,10]
[343037054,1732302638342,-427.98466746,0.0008322,10]
[343037056,1732302638353,-5254.67305374,0.0008322,10]
[343037058,1732302638364,-633.95213182,0.0008322,10]
[343037059,1732302638393,-2324.96189901,0.0008322,10]
[343037060,1732302638403,-1498.93609091,0.0008322,11]
[343037061,1732302638414,-10394.34675038,0.0008322,11]
[343037062,1732302638425,-4991.75116,0.0008322,11]
[343037063,1732302638437,-4529.91563141,0.0008322,11]
[343037064,1732302638450,-16847.09528073,0.0008322,10]
[343037065,1732302638470,-1287.6240226,0.0008322,10]
[343037066,1732302638484,-1642.9,0.0008322,10]
[343037067,1732302638542,-12914.81120417,0.0008322,10]
[343037068,1732302638551,-1392.6,0.0008323,120]
[343037069,1732302638562,-1838.7,0.0008323,120]
[343037070,1732302638571,-209.42839577,0.0008323,11]
[343037071,1732302638774,-21205.52123693,0.0008323,11]
[343037072,1732302638784,-1752.03,0.0008323,120]
[343037073,1732302638794,-672.05,0.0008323,120]
[343037074,1732302638803,-695.71,0.0008323,120]
[343037075,1732302638813,-500.0,0.0008323,120]
[343037076,1732302638823,-500.0,0.0008323,120]
[343037077,1732302638832,-16346.2152537,0.0008323,10]
[343037078,1732302638842,-1368.71,0.0008324,120]
[343037079,1732302638852,-1134.67,0.0008324,120]
[343037080,1732302638861,-730.93,0.0008324,120]
[343037082,1732302638871,-500.0,0.0008324,120]
[343037084,1732302638881,-500.0,0.0008324,120]
[343037086,1732302638890,-214.80434947,0.0008324,120]
[343037088,1732302638900,-500.0,0.0008324,120]
[343037090,1732302638910,-560.29,0.0008324,120]
[343037091,1732302638920,-4341.25435563,0.0008324,120]
[343037092,1732302638932,-4861.72564437,0.0008324,120]
[343037093,1732302638941,-919.48,0.0008324,120]
[343037094,1732302638951,-1310.86,0.0008324,120]
[343037095,1732302638960,-500.0,0.0008324,120]
[343037096,1732302638970,-500.0,0.0008324,120]
[343037097,1732302638979,-851.43,0.0008324,120]
[343037098,1732302638989,-500.0,0.0008324,120]
[343037100,1732302638998,-770.3908833,0.0008324,120]
[343037102,1732302639009,-621.67313335,0.0008324,120]
[343037104,1732302639020,-392.97598335,0.0008324,120]
[343037106,1732302639030,-1062.65,0.0008324,120]
[343037108,1732302639039,-500.0,0.0008324,120]
[343037110,1732302639048,-499.61898145,0.0008324,120]
[343037112,1732302639058,-867.12,0.0008324,120]
[343037114,1732302639067,-1045.19,0.0008324,120]
[343037116,1732302639076,-313.06680597,0.0008324,120]
[343037135,1732302639248,-186.93319403,0.0008324,120]
[343037137,1732302639258,-2357.94,0.0008324,120]
[343037138,1732302639266,-3124.96645106,0.0008324,120]
[343037140,1732302639284,-1159.47354894,0.0008324,120]
[343037141,1732302639294,-58.60303027,0.0008324,120]
[343037142,1732302639305,-337.94476527,0.0008324,120]
[343037143,1732302639316,-420.23788551,0.0008324,120]
[343037175,1732302640149,-79.76211449,0.0008324,120]
[343037176,1732302640158,-6555.33688481,0.0008324,11]
[343037177,1732302640170,-2322.43772497,0.0008324,11]
[343037178,1732302640181,-1313.10330899,0.0008324,11]
[343037179,1732302640245,-2241.23938525,0.0008324,11]
[343037183,1732302644108,-9485.0704632,0.00069952,6]
[343037184,1732302644118,-1197.62,0.00081399,120]
[343037185,1732302644128,-500.0,0.00082873,2]
[343037186,1732302644137,-1197.62,0.00082889,120]
[343037187,1732302644146,-212.20435326,0.00082989,120]
[343037188,1732302644336,-985.41564674,0.00082989,120]
[343037189,1732302644346,-1690.26655026,0.00083204,10]
[343037190,1732302644421,-1672.12458099,0.00083204,10]
[343037191,1732302644432,-4874.97878775,0.00083204,10]
[343037192,1732302644442,-1197.62,0.0008323,120]
[343037193,1732302644454,-30397.78196148,0.0008324,11]
[343037194,1732302644463,-32692.4305075,0.0008324,10]
[343037195,1732302644472,-1197.62,0.00083249,120]
[343037196,1732302644482,-1993.17655217,0.00083249,120]
[343037197,1732302644491,-1134.67,0.0008325,120]
[343037198,1732302644500,-1134.67,0.0008325,120]
[343037199,1732302644509,-730.93,0.0008325,120]
[343037200,1732302644519,-730.93,0.0008325,120]
[343037201,1732302644528,-500.0,0.0008325,120]
[343037202,1732302644537,-500.0,0.0008325,120]
[343037204,1732302644547,-151.0,0.0008325,120]
[343037206,1732302644556,-151.0,0.0008325,120]
[343037207,1732302644565,-500.0,0.0008325,120]
[343037208,1732302644574,-500.0,0.0008325,120]
[343037209,1732302644583,-151.0,0.0008325,120]
[343037210,1732302644592,-500.0,0.0008325,120]
[343037211,1732302644601,-500.0,0.0008325,120]
[343037212,1732302644611,-560.29,0.0008325,120]
[343037215,1732302644620,-560.29,0.0008325,120]
[343037217,1732302644629,-9202.98,0.0008325,120]
[343037219,1732302644639,-9202.98,0.0008325,120]
[343037220,1732302644648,-919.48,0.0008325,120]
[343037221,1732302644658,-919.48,0.0008325,120]
[343037222,1732302644667,-1310.86,0.0008325,120]
[343037223,1732302644680,-1310.86,0.0008325,120]
[343037224,1732302644690,-500.0,0.0008325,120]
[343037225,1732302644701,-500.0,0.0008325,120]
[343037226,1732302644715,-500.0,0.0008325,120]
[343037227,1732302644726,-500.0,0.0008325,120]
[343037228,1732302644735,-851.43,0.0008325,120]
[343037229,1732302644745,-851.43,0.0008325,120]
[343037230,1732302644755,-500.0,0.0008325,120]
[343037231,1732302644766,-500.0,0.0008325,120]
[343037232,1732302644776,-1785.04,0.0008325,120]
[343037233,1732302644786,-1785.04,0.0008325,120]
[343037234,1732302644795,-500.0,0.0008325,120]
[343037235,1732302644805,-1062.65,0.0008325,120]
[343037236,1732302644815,-500.0,0.0008325,120]
[343037237,1732302644824,-1062.65,0.0008325,120]
[343037238,1732302644835,-42829.8992655,0.0008325,11]
[343037239,1732302644845,-49038.6457612,0.0008325,10]
[343037240,1732302644854,-867.12,0.0008325,120]
[343037241,1732302644864,-867.12,0.0008325,120]
[343037242,1732302644873,-1045.19,0.0008325,120]
[343037243,1732302644883,-1045.19,0.0008325,120]
[343037244,1732302644892,-500.0,0.0008325,120]
[343037245,1732302644903,-500.0,0.0008325,120]
[343037246,1732302644913,-1752.03,0.0008325,120]
[343037247,1732302644923,-2357.94,0.0008325,120]
[343037248,1732302644932,-2357.94,0.0008325,120]
[343037249,1732302644941,-672.05,0.0008325,120]
[343037250,1732302644953,-4284.44,0.0008325,120]
[343037251,1732302644962,-4284.44,0.0008325,120]
[343037252,1732302644973,-242.52583,0.0008325,120]
[343037253,1732302644983,-242.52583,0.0008325,120]
[343037254,1732302644992,-500.0,0.0008325,120]
[343037255,1732302645001,-678.180327,0.0008325,120]
[343037256,1732302645011,-678.180327,0.0008325,120]
[343037257,1732302645022,-151.0,0.0008325,7]
[343037258,1732302645032,-221.028124,0.0008325,120]
[343037259,1732302645049,-500.0,0.0008325,120]
[343037260,1732302645064,-500.0,0.0008325,120]
[343037261,1732302645074,-1197.62,0.0008325,120]
[343037262,1732302645085,-149904.647429,0.00083251,11]
[343037263,1732302645095,-245193.228806,0.00083251,10]
[343037264,1732302645105,-1197.62,0.00083259,120]
[343037265,1732302645115,-1134.67,0.0008326,120]
[343037266,1732302645124,-1134.67,0.0008326,120]
[343037267,1732302645134,-1134.67,0.0008326,120]
[343037268,1732302645144,-730.93,0.0008326,120]
[343037269,1732302645154,-730.93,0.0008326,120]
[343037270,1732302645164,-730.93,0.0008326,120]
[343037271,1732302645175,-500.0,0.0008326,120]
[343037272,1732302645184,-500.0,0.0008326,120]
[343037273,1732302645194,-500.0,0.0008326,120]
[343037274,1732302645205,-500.0,0.0008326,120]
[343037275,1732302645215,-500.0,0.0008326,120]
[343037276,1732302645225,-500.0,0.0008326,120]
[343037277,1732302645234,-500.0,0.0008326,120]
[343037278,1732302645244,-500.0,0.0008326,120]
[343037279,1732302645253,-597.5687195,0.0008326,120]
[343037280,1732302645262,-560.29,0.0008326,120]
[343037281,1732302645272,-560.29,0.0008326,120]
[343037282,1732302645281,-560.29,0.0008326,120]
[343037283,1732302645291,-9202.98,0.0008326,120]
[343037284,1732302645300,-9202.98,0.0008326,120]
[343037285,1732302645313,-9202.98,0.0008326,120]
[343037286,1732302645329,-919.48,0.0008326,120]
[343037287,1732302645338,-919.48,0.0008326,120]
[343037288,1732302645348,-919.48,0.0008326,120]
[343037289,1732302645357,-1310.86,0.0008326,120]
[343037290,1732302645369,-1310.86,0.0008326,120]
[343037291,1732302645378,-1310.86,0.0008326,120]
[343037292,1732302645388,-500.0,0.0008326,120]
[343037293,1732302645398,-500.0,0.0008326,120]
[343037294,1732302645407,-500.0,0.0008326,120]
[343037295,1732302645417,-500.0,0.0008326,120]
[343037296,1732302645428,-500.0,0.0008326,120]
[343037297,1732302645438,-500.0,0.0008326,120]
[343037298,1732302645450,-851.43,0.0008326,120]
[343037299,1732302645460,-851.43,0.0008326,120]
[343037300,1732302645470,-851.43,0.0008326,120]
[343037301,1732302645479,-1392.6,0.0008326,120]
[343037302,1732302645489,-1392.6,0.0008326,120]
[343037303,1732302645498,-1392.6,0.0008326,120]
[343037304,1732302645508,-500.0,0.0008326,120]
[343037305,1732302645518,-500.0,0.0008326,120]
[343037306,1732302645528,-500.0,0.0008326,120]
[343037307,1732302645538,-1785.04,0.0008326,120]
[343037308,1732302645547,-1785.04,0.0008326,120]
[343037309,1732302645556,-1785.04,0.0008326,120]
[343037310,1732302645566,-1838.7,0.0008326,120]
[343037311,1732302645575,-1838.7,0.0008326,120]
[343037312,1732302645585,-1838.7,0.0008326,120]
[343037313,1732302645595,-500.0,0.0008326,120]
[343037314,1732302645605,-1062.65,0.0008326,120]
[343037315,1732302645614,-500.0,0.0008326,120]
[343037316,1732302645731,-1062.65,0.0008326,120]
[343037317,1732302645744,-500.0,0.0008326,120]
[343037318,1732302645755,-1062.65,0.0008326,120]
[343037319,1732302645767,-867.12,0.0008326,120]
[343037320,1732302645778,-867.12,0.0008326,120]
[343037321,1732302645788,-867.12,0.0008326,120]
[343037322,1732302645798,-1045.19,0.0008326,120]
[343037323,1732302645808,-1045.19,0.0008326,120]
[343037324,1732302645817,-1045.19,0.0008326,120]
[343037325,1732302645827,-500.0,0.0008326,120]
[343037326,1732302645838,-500.0,0.0008326,120]
[343037327,1732302645849,-500.0,0.0008326,120]
[343037328,1732302645859,-1752.03,0.0008326,120]
[343037329,1732302645869,-1752.03,0.0008326,120]
[343037330,1732302645879,-1752.03,0.0008326,120]
[343037331,1732302645888,-2357.94,0.0008326,120]
[343037332,1732302645898,-2357.94,0.0008326,120]
[343037333,1732302645908,-2357.94,0.0008326,120]
[343037334,1732302645918,-672.05,0.0008326,120]
[343037335,1732302645927,-672.05,0.0008326,120]
[343037336,1732302645937,-672.05,0.0008326,120]
[343037337,1732302645949,-4284.44,0.0008326,120]
[343037338,1732302645958,-4284.44,0.0008326,120]
[343037339,1732302645968,-4284.44,0.0008326,120]
[343037340,1732302645977,-242.52583,0.0008326,120]
[343037341,1732302645986,-242.52583,0.0008326,120]
[343037342,1732302645995,-695.71,0.0008326,120]
[343037343,1732302646005,-695.71,0.0008326,120]
[343037344,1732302646015,-695.71,0.0008326,120]
[343037345,1732302646024,-500.0,0.0008326,120]
[343037346,1732302646033,-574.16015011,0.0008326,120]
[343037347,1732302646043,-678.180327,0.0008326,120]
[343037348,1732302646052,-678.180327,0.0008326,120]
[343037349,1732302646063,-151.0,0.0008326,7]
[343037350,1732302646073,-500.0,0.0008326,120]
[343037351,1732302646082,-423.08426916,0.0008326,120]
[343037352,1732302646091,-500.0,0.0008326,120]
[343037353,1732302646101,-500.0,0.0008326,120]
[343037356,1732302646109,-500.0,0.0008326,120]
[343037359,1732302646119,-1197.62,0.0008326,120]
[343037361,1732302646128,-1197.62,0.0008326,120]
[343037364,1732302646138,-717741.4557,0.00083261,120]
[343037367,1732302646147,-329.6072,0.00083261,120]
[343037369,1732302646157,-6198.1143,0.00083261,30]
[343037372,1732302646166,-151.0,0.00083261,120]
[343037374,1732302646176,-152.76625,0.00083261,120]
[343037377,1732302646185,-151.0,0.00083261,120]
[343037380,1732302646194,-151.0,0.00083261,120]
[343037381,1732302646205,-151.0,0.00083261,110]
[343037383,1732302646215,-289.940078,0.00083261,120]
[343037384,1732302646224,-164.177606,0.00083261,120]
[343037385,1732302646233,-152.367218,0.00083261,120]
[343037386,1732302646243,-151.0,0.00083261,120]
[343037387,1732302646252,-151.0,0.00083261,120]
[343037388,1732302646261,-160.434116,0.00083261,120]
[343037389,1732302646270,-151.0,0.00083261,120]
[343037390,1732302646280,-167.186395,0.00083261,120]
[343037391,1732302646289,-498.600383,0.00083261,120]
[343037392,1732302646299,-498.600383,0.00083261,120]
[343037393,1732302646308,-151.0,0.00083261,120]
[343037394,1732302646317,-151.0,0.00083261,120]
[343037395,1732302646326,-151.0,0.00083261,120]
[343037396,1732302646335,-233.963154,0.00083261,120]
[343037397,1732302646344,-233.963154,0.00083261,120]
[343037398,1732302646354,-151.0,0.00083261,120]
[343037399,1732302646364,-153.602278,0.00083261,120]
[343037400,1732302646373,-151.0,0.00083261,120]
[343037401,1732302646382,-153.895954,0.00083261,120]
[343037402,1732302646391,-157.000626,0.00083261,120]
[343037403,1732302646401,-197.254133,0.00083261,120]
[343037404,1732302646410,-155.780491,0.00083261,120]
[343037405,1732302646419,-151.0,0.00083261,120]
[343037406,1732302646428,-156.021971,0.00083261,120]
[343037407,1732302646438,-151.0,0.00083261,120]
[343037408,1732302646450,-242.52583,0.00083261,120]
[343037409,1732302646459,-242.52583,0.00083261,120]
[343037410,1732302646468,-678.180327,0.00083261,120]
[343037411,1732302646477,-678.180327,0.00083261,120]
[343037412,1732302646487,-151.0,0.00083261,7]
[343037413,1732302646496,-1752.03,0.00083266,120]
[343037414,1732302646505,-672.05,0.00083266,120]
[343037415,1732302646514,-1134.67,0.00083267,120]
[343037416,1732302646523,-730.93,0.00083267,120]
[343037417,1732302646533,-500.0,0.00083267,120]
[343037418,1732302646542,-500.0,0.00083267,120]
[343037419,1732302646552,-560.29,0.00083267,120]
[343037420,1732302646561,-9202.98,0.00083267,120]
[343037421,1732302646570,-919.48,0.00083267,120]
[343037422,1732302646580,-1310.86,0.00083267,120]
[343037423,1732302646589,-500.0,0.00083267,120]
[343037424,1732302646599,-500.0,0.00083267,120]
[343037425,1732302646608,-851.43,0.00083267,120]
[343037426,1732302646618,-1392.6,0.00083267,120]
[343037427,1732302646627,-500.0,0.00083267,120]
[343037428,1732302646636,-1785.04,0.00083267,120]
[343037429,1732302646646,-1838.7,0.00083267,120]
[343037430,1732302646655,-500.0,0.00083267,120]
[343037431,1732302646664,-1062.65,0.00083267,120]
[343037432,1732302646674,-867.12,0.00083267,120]
[343037433,1732302646684,-1045.19,0.00083267,120]
[343037434,1732302646698,-269.12,0.00083267,120]
[343037435,1732302646707,-2357.94,0.00083267,120]
[343037436,1732302646717,-4284.44,0.00083267,120]
[343037437,1732302646726,-695.71,0.00083267,120]
[343037438,1732302646738,-500.0,0.00083267,120]
[343037439,1732302646747,-92744.5942,0.00083268,30]
[343037440,1732302646756,-1000.0,0.00083279,30]
[343037441,1732302646767,-683.24,0.00083388,60]
[343037442,1732302646777,-1126.22,0.00083388,120]
[343037444,1732302646786,-983.37,0.00083397,120]
[343037445,1732302646796,-500.0,0.00083397,120]
[343037446,1732302646805,-500.0,0.00083397,120]
[343037448,1732302646814,-699.09,0.00083397,120]
[343037449,1732302646824,-500.0,0.00083397,120]
[343037450,1732302646834,-581.33,0.00083397,120]
[343037451,1732302646843,-151.0,0.00083399,120]
[343037452,1732302646853,-500.0,0.00083399,120]
[343037453,1732302646862,-201.39148,0.000834,120]
[343037454,1732302646871,-154.04,0.00083565,2]
[343037455,1732302646883,-163.74,0.00083701,2]
[343037456,1732302646892,-500.0,0.00083835,120]
[343037457,1732302646901,-500.0,0.00083835,120]
[343037458,1732302646911,-500.0,0.00083835,120]
[343037459,1732302646920,-500.0,0.00083835,120]
[343037460,1732302646929,-500.0,0.00083835,120]
[343037461,1732302646939,-500.0,0.00083835,120]
[343037462,1732302646950,-500.0,0.00083835,120]
[343037463,1732302646961,-500.0,0.00083835,120]
[343037464,1732302646970,-500.0,0.00083835,120]
[343037465,1732302646979,-50000.0,0.00084,51]
[343037466,1732302646988,-1000.0,0.00084,14]
[343037467,1732302646997,-821.57738,0.000841,120]
[343037468,1732302647007,-10000.0,0.000842,120]
[343037469,1732302647017,-1126.22,0.0008424,120]
[343037470,1732302647026,-9000.0,0.0008425,120]
[343037471,1732302647035,-11621.77452483,0.0008428,2]
[343037472,1732302647045,-1250.0,0.000843,120]
[343037473,1732302647055,-1000.0,0.000843,14]
[343037474,1732302647065,-1752.03,0.00084368,120]
[343037475,1732302647075,-672.05,0.00084368,120]
[343037476,1732302647084,-1134.67,0.00084369,120]
[343037477,1732302647094,-730.93,0.00084369,120]
[343037478,1732302647104,-500.0,0.00084369,120]
[343037479,1732302647113,-500.0,0.00084369,120]
[343037480,1732302647123,-500.0,0.00084369,120]
[343037481,1732302647132,-486.47578553,0.00084369,120]
[343037482,1732302647141,-560.29,0.00084369,120]
[343037483,1732302647151,-9202.98,0.00084369,120]
[343037484,1732302647160,-919.48,0.00084369,120]
[343037485,1732302647170,-1310.86,0.00084369,120]
[343037486,1732302647180,-500.0,0.00084369,120]
[343037487,1732302647190,-500.0,0.00084369,120]
[343037488,1732302647202,-851.43,0.00084369,120]
[343037489,1732302647211,-500.0,0.00084369,120]
[343037490,1732302647221,-1785.04,0.00084369,120]
[343037491,1732302647231,-500.0,0.00084369,120]
[343037492,1732302647241,-1062.65,0.00084369,120]
[343037493,1732302647250,-867.12,0.00084369,120]
[343037494,1732302647259,-1045.19,0.00084369,120]
[343037495,1732302647269,-2357.94,0.00084369,120]
[343037496,1732302647278,-4284.44,0.00084369,120]
[343037497,1732302647288,-983.37,0.0008437,120]
[343037498,1732302647297,-500.0,0.0008437,120]
[343037499,1732302647307,-500.0,0.0008437,120]
[343037500,1732302647316,-699.09,0.0008437,120]
[343037501,1732302647325,-500.0,0.0008437,120]
[343037502,1732302647334,-241.773565,0.00084383,120]
[343037503,1732302647344,-151.0,0.00084383,120]
[343037504,1732302647354,-151.0,0.00084383,110]
[343037505,1732302647363,-983.37,0.00084384,120]
[343037506,1732302647372,-500.0,0.00084384,120]
[343037507,1732302647382,-500.0,0.00084384,120]
[343037508,1732302647391,-699.09,0.00084384,120]
[343037509,1732302647400,-500.0,0.00084384,120]
[343037510,1732302647409,-682.56763805,0.00084398,120]
[343037511,1732302647422,-5230.74831199,0.00084398,120]
[343037512,1732302647431,-1392.6,0.00084398,120]
[343037513,1732302647441,-1838.7,0.00084398,120]
[343037514,1732302647452,-695.71,0.00084398,120]
[343037515,1732302647462,-500.0,0.00084398,120]
[343037516,1732302647471,-983.37,0.00084399,120]
[343037517,1732302647481,-500.0,0.00084399,120]
[343037518,1732302647490,-1126.22,0.00084399,120]
[343037519,1732302647499,-500.0,0.00084399,120]
[343037520,1732302647508,-261.5,0.00084399,120]
[343037521,1732302647517,-699.09,0.00084399,120]
[343037522,1732302647526,-500.0,0.00084399,120]
[343037523,1732302647535,-90687.39521772,0.000844,120]
[343037524,1732302647545,-153.00255,0.000844,120]
[343037525,1732302647554,-498.600383,0.000844,120]
[343037526,1732302647563,-498.600383,0.000844,120]
[343037527,1732302647572,-151.0,0.000844,120]
[343037528,1732302647582,-233.963154,0.000844,120]
[343037529,1732302647591,-233.963154,0.000844,120]
[343037530,1732302647600,-247.367387,0.000844,120]
[343037531,1732302647609,-151.0,0.000844,120]
[343037532,1732302647619,-151.0,0.000844,120]
[343037533,1732302647629,-151.0,0.000844,120]
[343037534,1732302647638,-242.52583,0.000844,120]
[343037535,1732302647648,-242.52583,0.000844,120]
[343037536,1732302647657,-678.180327,0.000844,120]
[343037537,1732302647667,-678.180327,0.000844,120]
[343037538,1732302647680,-297.227109,0.000844,7]
[343037539,1732302647689,-1134.67,0.00084417,120]
[343037540,1732302647701,-730.93,0.00084417,120]
[343037541,1732302647711,-500.0,0.00084417,120]
[343037542,1732302647722,-500.0,0.00084417,120]
[343037543,1732302647731,-539.94929546,0.00084417,120]
[343037544,1732302647741,-560.29,0.00084417,120]
[343037545,1732302647751,-919.48,0.00084417,120]
[343037546,1732302647761,-1310.86,0.00084417,120]
[343037547,1732302647771,-500.0,0.00084417,120]
[343037548,1732302647782,-500.0,0.00084417,120]
[343037549,1732302647792,-851.43,0.00084417,120]
[343037550,1732302647802,-500.0,0.00084417,120]
[343037551,1732302647811,-1785.04,0.00084417,120]
[343037552,1732302647821,-500.0,0.00084417,120]
[343037553,1732302647830,-1062.65,0.00084417,120]
[343037554,1732302647840,-867.12,0.00084417,120]
[343037555,1732302647849,-1045.19,0.00084417,120]
[343037556,1732302647859,-2357.94,0.00084417,120]
[343037557,1732302647868,-4284.44,0.00084417,120]
[343037558,1732302647878,-718.19999714,0.00084602,11]
[343037559,1732302647888,-2445.0,0.0008466,60]
[343037560,1732302647898,-542.82891107,0.00084679,15]
[343037561,1732302647908,-1916.16500162,0.00084679,15]
[343037562,1732302647918,-2500.0,0.0008492,120]
[343037563,1732302647928,-501.48816491,0.00084931,120]
[343037564,1732302647938,-152.556,0.0008497,120]
[343037565,1732302647950,-983.37,0.00084999,120]
[343037566,1732302647960,-500.0,0.00084999,120]
[343037567,1732302647970,-699.09,0.00084999,120]
[343037568,1732302647979,-9202.98,0.00084999,120]
[343037569,1732302647989,-500.0,0.00084999,120]
[343037570,1732302647998,-1752.03,0.00084999,120]